[Event "SixDays GM March 2024"]
[Site "Budapest"]
[Date "2024.04.04"]
[Round "9.3"]
[White "Konyves, Almos"]
[Black "Orujov, Farid"]
[Result "0-1"]
[ECO "D70"]
[WhiteElo "2306"]
[BlackElo "2266"]
[Annotator "RC"]
[PlyCount "86"]
[EventDate "2024.03.26"]
[EventType "tourn"]
[EventCountry "HUN"]
[SourceTitle "playchess.com"]
[Source "ChessBase"]
[SourceQuality "1"]
[TimeControl "5400+30"]

1. d4 {[%emt 0:02:13]} d5 {[%emt 0:01:12]} 2. c4 {[%emt 0:00:29]} c6 {[%emt 0:00:13]} 3. Nf3 {[%emt 0:00:09]} Nf6 {[%emt 0:00:05]} 4. Nbd2 {[%emt 0:00:23]} Bf5 {[%emt 0:00:26]} 5. Nh4 {[%emt 0:00:24]} Bg4 {[%emt 0:01:40]} 6. h3 {[%emt 0:00:41]} Bh5 {[%emt 0:00:39]} 7. g4 {[%emt 0:00:32]} Bg6 {[%emt 0:00:14]} 8. Nxg6 {[%emt 0:00:05]} hxg6 {[%emt 0:00:04]} 9. g5 {[%emt 0:01:33]} Nfd7 {[%emt 0:06:28]} 10. e3 {[%emt 0:01:26]} e5 {[%emt 0:02:21]} 11. Qb3 Qc7 {[%emt 0:07:19]} 12. Bg2 {[%emt 0:29:33]} exd4 {[%emt 0:04:49]} 13. exd4 {[%emt 0:00:16]} Bd6 {[%emt 0:10:26]} 14. Qe3+ {[%emt 0:04:05]} Kf8 {[%emt 0:02:48]} 15. O-O {[%emt 0:01:21]} Bh2+ {[%emt 0:04:05]} 16. Kh1 {[%emt 0:01:44]} Bf4 {[%emt 0:00:06]} 17. Qf3 {[%emt 0:01:25]} Bxg5 {[%emt 0:07:51]} 18. cxd5 {[%emt 0:08:41]} cxd5 {[%emt 0:00:21]} 19. Qxd5 {[%emt 0:00:47]} Rh5 {[%emt 0:01:19]} 20. Ne4 {[%emt 0:15:14]} Be7 {[%emt 0:12:07]} 21. Qb3 {[%emt 0:01:20]} Nc6 {[%emt 0:00:43]} 22. Be3 {[%emt 0:00:34]} Nf6 {[%emt 0:01:29]} 23. Nxf6 {[%emt 0:04:40]} Bxf6 {[%emt 0:00:44]} 24. d5 {[%emt 0:14:43]} Ne5 {[%emt 0:00:58]} 25. Bf4 {[%emt 0:00:07]} Qd7 {[%emt 0:03:15]} 26. Rfe1 {[%emt 0:01:57]} Qf5 {[%emt 0:03:50]} 27. Re4 {[%emt 0:04:31]} Ng4 {[%emt 0:09:10]} 28. Kg1 {[%emt 0:04:05]} Nxf2 {[%emt 0:00:50]} 29. Kxf2 {[%emt 0:00:05]} g5 {[%emt 0:00:02]} 30. Qb4+ {[%emt 0:00:29]} Kg8 {[%emt 0:00:39]} 31. Rae1 {[%emt 0:00:48]} Rh4 {[%emt 0:10:00]} 32. Re8+ {[%emt 0:00:52]} Rxe8 {[%emt 0:00:02]} 33. Rxe8+ {[%emt 0:00:05]} Kh7 {[%emt 0:00:04]} 34. Be4 {[%emt 0:00:17]} Rxf4+ {[%emt 0:00:01]} 35. Ke3 {[%emt 0:00:43]} g6 {[%emt 0:00:12]} 36. Qxb7 {[%emt 0:01:37]} Qxh3+ {[%emt 0:00:12]} 37. Ke2 {[%emt 0:00:13]} Qg4+ {[%emt 0:00:38]} 38. Kd3 {[%emt 0:00:29]} Qd1+ {[%emt 0:00:06]} 39. Kc4 {[%emt 0:00:37]} Qd4+ {[%emt 0:00:05]} 40. Kb5 {[%emt 0:00:07]} Rxe4 {[%emt 0:01:01]} 41. Qxf7+ {[%emt 0:00:09]} Bg7 {[%emt 0:00:12]} 42. Rxe4 {[%emt 0:00:08]} Qxe4 {[%emt 0:00:11]} 43. d6 {[%emt 0:00:06]} Qf5+ {[%emt 0:00:19]} 0-1

[Event "SixDays GM March 2024"]
[Site "Budapest"]
[Date "2024.04.04"]
[Round "9.4"]
[White "Pribelszky, Bence"]
[Black "Grover, Sahaj"]
[Result "0-1"]
[ECO "C55"]
[WhiteElo "2354"]
[BlackElo "2514"]
[Annotator "RC"]
[PlyCount "172"]
[EventDate "2024.03.26"]
[EventType "tourn"]
[EventCountry "HUN"]
[SourceTitle "playchess.com"]
[Source "ChessBase"]
[SourceQuality "1"]
[TimeControl "5400+30"]

1. e4 {[%emt 0:00:03]} e5 {[%emt 0:12:40]} 2. Nf3 {[%emt 0:00:05]} Nc6 {[%emt 0:00:04]} 3. Bc4 {[%emt 0:00:05]} Nf6 {[%emt 0:00:04]} 4. d3 {[%emt 0:00:05]} h6 {[%emt 0:00:04]} 5. O-O {[%emt 0:00:18]} d6 {[%emt 0:00:03]} 6. a4 {[%emt 0:00:26]} g6 {[%emt 0:00:48]} 7. a5 {[%emt 0:00:08]} a6 {[%emt 0:00:05]} 8. Re1 {[%emt 0:02:08]} Bg7 {[%emt 0:00:05]} 9. h3 {[%emt 0:00:14]} O-O {[%emt 0:00:06]} 10. c3 {[%emt 0:02:27]} b5 {[%emt 0:01:07]} 11. axb6 {[%emt 0:01:06]} cxb6 {[%emt 0:00:05]} 12. b4 Bb7 13. Bb2 {[%emt 0:37:30]} d5 {[%emt 0:02:04]} 14. exd5 {[%emt 0:00:14]} Nxd5 {[%emt 0:00:05]} 15. Bxd5 {[%emt 0:08:47]} Qxd5 {[%emt 0:00:07]} 16. c4 {[%emt 0:00:06]} Qd7 {[%emt 0:02:28]} 17. b5 {[%emt 0:01:28]} axb5 {[%emt 0:00:06]} 18. cxb5 {[%emt 0:00:11]} Nb4 {[%emt 0:04:46]} 19. Rxa8 {[%emt 0:08:14]} Rxa8 {[%emt 0:00:05]} 20. Bxe5 {[%emt 0:00:43]} Qxd3 {[%emt 0:05:22]} 21. Bxg7 {[%emt 0:03:55]} Kxg7 {[%emt 0:03:10]} 22. Qd2 {[%emt 0:13:50]} Qxb5 {[%emt 0:04:29]} 23. Re7 {[%emt 0:10:35]} Bxf3 {[%emt 0:03:19]} 24. Qc3+ {[%emt 0:03:34]} Kg8 {[%emt 0:05:40]} 25. Rxf7 {[%emt 0:00:24]} Kxf7 {[%emt 0:00:53]} 26. Qxf3+ {[%emt 0:00:02]} Qf5 {[%emt 0:14:16]} 27. Qb7+ {[%emt 0:00:06]} Kf6 {[%emt 0:00:04]} 28. Qxb6+ {[%emt 0:00:15]} Qe6 {[%emt 0:06:13]} 29. Qxb4 {[%emt 0:00:32]} g5 {[%emt 0:01:12]} 30. Nd2 {[%emt 0:05:58]} Qe1+ {[%emt 0:01:03]} 31. Kh2 {[%emt 0:00:03]} Qe5+ {[%emt 0:00:05]} 32. g3 {[%emt 0:00:17]} Re8 {[%emt 0:07:36]} 33. h4 {[%emt 0:01:07]} Qd5 {[%emt 0:00:37]} 34. Qc3+ {[%emt 0:00:52]} Kg6 {[%emt 0:00:41]} 35. Qc2+ {[%emt 0:01:35]} Kg7 {[%emt 0:01:28]} 36. Qc3+ {[%emt 0:00:12]} Kf7 {[%emt 0:00:08]} 37. hxg5 {[%emt 0:00:46]} hxg5 {[%emt 0:01:58]} 38. Qf3+ {[%emt 0:00:34]} Qxf3 {[%emt 0:00:04]} 39. Nxf3 {[%emt 0:00:01]} g4 {[%emt 0:00:05]} 40. Nh4 {[%emt 0:00:53]} Kf6 {[%emt 0:00:12]} 41. Kg2 {[%emt 0:00:40]} Re2 {[%emt 0:00:12]} 42. Kf1 {[%emt 0:00:07]} Ra2 {[%emt 0:00:20]} 43. f3 {[%emt 0:00:48]} Kg5 {[%emt 0:00:05]} 44. fxg4 {[%emt 0:00:34]} Kxg4 {[%emt 0:00:03]} 45. Ng2 {[%emt 0:00:17]} Kxg3 {[%emt 0:00:13]} 46. Ne1 {[%emt 0:00:10]} Rd2 {[%emt 0:00:14]} 47. Kg1 {[%emt 0:00:06]} Rf2 {[%emt 0:00:05]} 48. Nd3 {[%emt 0:00:15]} Rf5 {[%emt 0:00:34]} 49. Ne1 {[%emt 0:00:29]} Rf8 {[%emt 0:00:15]} 50. Ng2 {[%emt 0:01:25]} Kf3 {[%emt 0:00:07]} 51. Kf1 {[%emt 0:00:09]} Rf7 {[%emt 0:00:17]} 52. Ne1+ {[%emt 0:00:55]} Ke3+ {[%emt 0:00:05]} 53. Kg1 {[%emt 0:00:15]} Ke2 {[%emt 0:00:04]} 54. Ng2 {[%emt 0:00:10]} Rh7 {[%emt 0:00:10]} 55. Nf4+ {[%emt 0:00:23]} Kf3 {[%emt 0:00:05]} 56. Nd3 {[%emt 0:00:44]} Rh4 {[%emt 0:00:48]} 57. Nf2 {[%emt 0:01:11]} Ra4 {[%emt 0:00:31]} 58. Nd3 {[%emt 0:00:11]} Ra1+ {[%emt 0:00:08]} 59. Kh2 {[%emt 0:00:03]} Ra2+ {[%emt 0:01:19]} 60. Kg1 {[%emt 0:00:46]} Ke3 {[%emt 0:01:19]} 61. Ne5 {[%emt 0:00:29]} Ra4 {[%emt 0:00:05]} 62. Kh2 {[%emt 0:01:02]} Re4 {[%emt 0:00:07]} 63. Ng6 {[%emt 0:00:20]} Rg4 {[%emt 0:00:05]} 64. Ne5 {[%emt 0:00:21]} Rg5 {[%emt 0:00:05]} 65. Nc4+ {[%emt 0:00:48]} Kd3 {[%emt 0:00:22]} 66. Nb2+ {[%emt 0:00:16]} Ke2 {[%emt 0:00:33]} 67. Nc4 {[%emt 0:00:11]} Rc5 {[%emt 0:02:43]} 68. Nd6 {[%emt 0:00:32]} Kf3 {[%emt 0:00:04]} 69. Kg1 {[%emt 0:01:02]} Kf4 {[%emt 0:00:36]} 70. Kf2 {[%emt 0:00:16]} Ke5 {[%emt 0:01:28]} 71. Nf7+ {[%emt 0:00:43]} Kf5 {[%emt 0:00:53]} 72. Nd6+ {[%emt 0:00:31]} Kf4 {[%emt 0:00:08]} 73. Ke2 {[%emt 0:00:26]} Re5+ {[%emt 0:00:47]} 74. Kf2 {[%emt 0:00:03]} Rd5 {[%emt 0:00:04]} 75. Nc4 {[%emt 0:00:54]} Rd4 {[%emt 0:00:02]} 76. Na3 {[%emt 0:00:35]} Ra4 {[%emt 0:01:50]} 77. Nb5 {[%emt 0:00:06]} Ra2+ {[%emt 0:00:42]} 78. Ke1 {[%emt 0:00:28]} Ke3 {[%emt 0:00:04]} 79. Kf1 {[%emt 0:00:58]} Kd3 {[%emt 0:00:33]} 80. Nd6 {[%emt 0:00:31]} Ra6 {[%emt 0:00:12]} 81. Ne8 {[%emt 0:00:29]} Ke4 {[%emt 0:00:20]} 82. Nc7 {[%emt 0:00:30]} Rb6 {[%emt 0:00:04]} 83. Kf2 {[%emt 0:00:30]} Ke5 {[%emt 0:00:09]} 84. Kf3 {[%emt 0:00:27]} Rb7 {[%emt 0:00:12]} 85. Na6 {[%emt 0:00:29]} Kd6 {[%emt 0:00:04]} 86. Ke4 {[%emt 0:00:08]} Rb6 {[%emt 0:00:03]} 0-1

[Event "SixDays GM March 2024"]
[Site "Budapest"]
[Date "2024.04.04"]
[Round "9.5"]
[White "Juhasz, Agoston"]
[Black "Mihok, Oliver"]
[Result "0-1"]
[ECO "B40"]
[WhiteElo "2406"]
[BlackElo "2549"]
[Annotator "TA"]
[PlyCount "114"]
[EventDate "2024.03.26"]
[EventType "tourn"]
[EventCountry "HUN"]
[SourceTitle "playchess.com"]
[Source "ChessBase"]
[SourceQuality "1"]
[TimeControl "5400+30"]

{[%evp 23,114,2,11,9,5,5,8,4,27,18,6,5,8,0,0,0,1,0,0,0,0,0,0,-5,0,0,0,0,0,0,0,0,0,0,0,0,0,0,0,0,0,0,0,0,0,0,0,0,0,0,0,0,0,0,0,0,0,0,0,0,0,-12,-8,-53,7,0,32,0,0,0,0,0,0,0,0,0,0,0,0,0,0,0,0,0,0,0,0,-29986,-29987,-29987,-29988,-29987,-1052]} 1. e4 {[%emt 0:00:07]} c5 {[%emt 0:00:12]} 2. Nf3 {[%emt 0:00:08]} e6 {[%emt 0:00:05]} 3. c3 {[%emt 0:00:43]} d5 {[%emt 0:00:55]} 4. exd5 {[%emt 0:00:08]} Qxd5 {[%emt 0:00:05]} 5. d4 {[%emt 0:00:06]} Nf6 {[%emt 0:00:05]} 6. Be2 {[%emt 0:00:42]} Nc6 {[%emt 0:02:31]} 7. O-O {[%emt 0:00:52]} cxd4 {[%emt 0:02:08]} 8. cxd4 {[%emt 0:01:09]} a6 {[%emt 0:04:40]} 9. Nc3 {[%emt 0:00:46]} Qd6 {[%emt 0:00:03]} 10. Be3 {[%emt 0:05:03]} Be7 {[%emt 0:01:41]} 11. Nd2 {[%emt 0:01:45] B28: Sicilian: 2 Nf3 a6 (O'Kelly Variation).} Nb4 12. Nde4 {[%emt 0:00:30]} Nxe4 13. Nxe4 {[%emt 0:00:30]} Qd8 {[%emt 0:14:55]} 14. Nc3 {[%emt 0:00:30]} Bd7 $146 {[%emt 0:07:11]} ({Predecessor:} 14... O-O 15. Bf3 {½-½ Ciric,D-Taimanov,M Chigorin Memorial-02 1961 (1)}) 15. a3 {[%emt 0:14:13]} Nd5 {[%emt 0:00:23]} 16. Nxd5 {[%emt 0:00:29]} exd5 {[%emt 0:00:05]} 17. Qb3 {[%emt 0:03:47]} Bc6 {[%emt 0:00:14]} 18. Bd2 {[%emt 0:19:16]} a5 {[%emt 0:07:07]} 19. Bb5 {[%emt 0:07:00]} O-O {[%emt 0:13:41]} 20. Bxc6 {[%emt 0:03:16]} bxc6 {[%emt 0:00:04]} 21. Rfc1 {[%emt 0:01:06]} Qb8 {[%emt 0:01:53]} 22. Qd3 {[%emt 0:17:03]} a4 {[%emt 0:07:22]} 23. Rc2 {[%emt 0:01:26]} Qb7 {[%emt 0:02:44]} 24. g3 {[%emt 0:00:36]} Ra6 {[%emt 0:02:28]} 25. Re1 {[%emt 0:01:12]} Rb6 {[%emt 0:02:53]} 26. Bc3 {[%emt 0:00:36]} Bd6 {[%emt 0:01:15]} 27. Rce2 {[%emt 0:00:43]} Qd7 {[%emt 0:02:28]} 28. Re3 {[%emt 0:00:53]} g6 {[%emt 0:01:39]} 29. Qe2 {[%emt 0:02:26]} Rbb8 {[%emt 0:02:00]} 30. Qa6 {[%emt 0:03:03]} Ra8 {[%emt 0:00:37]} 31. Qe2 {[%emt 0:00:20]} Rfb8 {[%emt 0:01:02]} 32. Kg2 {[%emt 0:01:17]} h5 {[%emt 0:03:04]} 33. h3 {[%emt 0:01:05]} Qf5 {[%emt 0:03:05]} 34. Rf3 {[%emt 0:00:58]} Qd7 {[%emt 0:00:11]} 35. Re3 {[%emt 0:00:29]} Kf8 {[%emt 0:02:00]} 36. Qf3 {[%emt 0:00:54]} Kg7 {[%emt 0:01:00]} 37. Qe2 {[%emt 0:00:17]} Kg8 {[%emt 0:03:12]} 38. Qf3 {[%emt 0:01:25]} Re8 {[%emt 0:01:20]} 39. Qf6 {[%emt 0:01:39]} Bf8 {[%emt 0:01:13]} 40. Qf3 {[%emt 0:01:10]} Rxe3 {[%emt 0:02:41]} 41. Rxe3 {[%emt 0:00:20]} Re8 {[%emt 0:00:49]} 42. Bd2 {[%emt 0:04:36]} Bg7 {[%emt 0:01:12]} 43. Qf4 {[%emt 0:04:05]} f5 {[%emt 0:00:54]} (43... Rxe3 $15 44. Qxe3 Qf5 45. Qe8+ Kh7 46. Qxc6 Qe4+ (46... Bxd4 47. Be3 $15) 47. Kf1 Qd3+ (47... Bxd4 $2 48. Be1 $19) (47... Qxd4 48. Bc3 $15) 48. Ke1 Bxd4 (48... Qxd4 49. Bc3 $11) 49. Qxa4 (49. Bc3 $2 Qe4+ 50. Kd1 Qf3+ 51. Kc1 Bxf2 $19) 49... Bxf2+ (49... Bxb2 50. Qf4 $11) 50. Kxf2 Qxd2+ 51. Kf1 Qc1+ (51... Qxb2 52. Qb4 $17) 52. Ke2 Qxb2+ 53. Kd1 Qc3) 44. b3 $11 {[%emt 0:01:02]} Rxe3 {[%emt 0:01:14]} 45. Qxe3 {[%emt 0:00:03]} axb3 {[%emt 0:00:11]} 46. Qxb3 {[%emt 0:00:10]} Bxd4 {[%emt 0:00:22]} 47. a4 {[%emt 0:01:06]} Kf7 {[%emt 0:04:01]} 48. a5 {[%emt 0:00:16]} Qa7 {[%emt 0:00:42]} 49. Qa4 {[%emt 0:00:53]} Qc5 {[%emt 0:00:52]} 50. Be3 {[%emt 0:02:27]} Bxe3 {[%emt 0:00:26]} 51. fxe3 {[%emt 0:00:01]} Qxe3 {[%emt 0:01:05]} 52. a6 {[%emt 0:01:03]} Qe2+ {[%emt 0:01:52]} 53. Kg1 {[%emt 0:00:08]} Qe3+ {[%emt 0:01:34]} 54. Kg2 {[%emt 0:00:02]} h4 {[%emt 0:00:26]} 55. a7 $2 {[%emt 0:01:12][%mdl 8192] [#]} (55. gxh4 $11 f4 56. a7 (56. Qxc6 Qe2+ 57. Kh1 Qf1+ 58. Kh2 Qf2+ 59. Kh1 Qe1+ 60. Kg2 Qg3+ 61. Kh1 Qxh3+ 62. Kg1 Qg4+ 63. Kf1 Qd1+ 64. Kg2 Qe2+ 65. Kg1 Qg4+ 66. Kf1 Qh3+ 67. Ke2 Qe3+ 68. Kd1 Qg1+ 69. Kc2 Qf2+ 70. Kb3 Qe3+ 71. Kc2 Qe2+ 72. Kc3 Qe5+ 73. Kc2 f3 $11)) 55... Qe2+ $1 {[%emt 0:00:23]} ({Weaker is} 55... Qxg3+ 56. Kf1 Qf3+ (56... Qxh3+ 57. Ke1 $11) 57. Ke1 Qe3+ (57... Qxh3 $2 {is the wrong capture.} 58. a8=Q $18) 58. Kd1 Qd3+ (58... Qxh3 $2 59. a8=Q $18) 59. Kc1 Qc3+ (59... Qxh3 $2 60. a8=Q $18) 60. Kd1 Qd3+ (60... Qxh3 $2 61. a8=Q $18) 61. Ke1 Qe3+ (61... Qxh3 $2 62. a8=Q $18) 62. Kf1 Qd3+ (62... Qxh3+ 63. Ke2 $11) 63. Ke1 Qe3+ $11 (63... Qxh3 $2 64. a8=Q $18)) 56. Kg1 {[%emt 0:00:44]} hxg3 {[%emt 0:00:03]} 57. Qd4 {[%emt 0:00:42]} Qh2+ {[%emt 0:00:19]} 0-1